fUSD/lending_fUSD_20240515
["ID","MTS","AMOUNT","RATE_DAILY","PERIOD"]
[327052588,1715746244137,-150.0,0.00012906,2]
[327052589,1715746244146,-150.0,0.00012907,2]
[327052590,1715746244156,-150.0,0.00012908,2]
[327052591,1715746244165,-150.0,0.0001291,2]
[327052592,1715746244174,-150.0,0.00012915,2]
[327052593,1715746244184,-150.0,0.00012915,2]
[327052594,1715746244193,-150.0,0.00012916,2]
[327052595,1715746244202,-150.0,0.00012917,2]
[327052596,1715746244212,-150.0,0.00012918,2]
[327052597,1715746244221,-150.0,0.00012921,2]
[327052598,1715746244231,-150.0,0.00012923,2]
[327052599,1715746244241,-150.0,0.00012923,2]
[327052600,1715746244251,-150.0,0.00012924,2]
[327052601,1715746244260,-150.0,0.00012924,2]
[327052602,1715746244269,-150.0,0.00012926,2]
[327052603,1715746244278,-150.0,0.00012927,2]
[327052604,1715746244288,-150.0,0.00012932,2]
[327052605,1715746244297,-150.0,0.00012933,2]
[327052606,1715746244306,-150.0,0.00012937,2]
[327052607,1715746244317,-150.0,0.00012938,2]
[327052608,1715746244327,-150.0,0.0001294,2]
[327052609,1715746244337,-150.0,0.00012941,2]
[327052610,1715746244347,-150.0,0.00012943,2]
[327052611,1715746244356,-150.0,0.00012943,2]
[327052612,1715746244366,-150.0,0.00012944,2]
[327052613,1715746244376,-150.0,0.00012946,2]
[327052614,1715746244386,-150.0,0.00012948,2]
[327052615,1715746244395,-150.0,0.00012949,2]
[327052616,1715746244404,-150.0,0.0001295,2]
[327052617,1715746244414,-150.0,0.00012951,2]
[327052618,1715746244423,-150.0,0.00012951,2]
[327052619,1715746244432,-150.0,0.00012951,2]
[327052620,1715746244442,-150.0,0.00012954,2]
[327052621,1715746244452,-150.0,0.00012955,2]
[327052622,1715746244461,-150.0,0.00012956,2]
[327052623,1715746244471,-150.0,0.00012957,2]
[327052624,1715746244480,-150.0,0.00012957,2]
[327052625,1715746244493,-150.0,0.00012959,2]
[327052626,1715746244503,-150.0,0.00012962,2]
[327052627,1715746244512,-150.0,0.00012962,2]
[327052628,1715746244522,-150.0,0.00012964,2]
[327052629,1715746244533,-150.0,0.00012964,2]
[327052630,1715746244543,-150.0,0.00012965,2]
[327052631,1715746244552,-150.0,0.0001297,2]
[327052632,1715746244565,-150.0,0.00012971,2]
[327052633,1715746244575,-150.0,0.00012972,2]
[327052634,1715746244585,-150.0,0.00012977,2]
[327052635,1715746244594,-150.0,0.00012981,2]
[327052636,1715746244604,-150.0,0.00012982,2]
[327052637,1715746244614,-150.0,0.00012983,2]
[327052638,1715746244625,-150.0,0.00012983,2]
[327052639,1715746244635,-150.0,0.00012983,2]
[327052640,1715746244645,-150.0,0.00012987,2]
[327052641,1715746244654,-150.0,0.00012988,2]
[327052642,1715746244666,-150.0,0.00012988,2]
[327052643,1715746244675,-150.0,0.00012992,2]
[327052644,1715746244685,-150.0,0.00012996,2]
[327052645,1715746244695,-150.0,0.00012997,2]
[327052646,1715746244704,-500.0,0.00012998,2]
[327052647,1715746244715,-150.0,0.00012998,2]
[327052648,1715746244724,-150.0,0.00012998,2]
[327052649,1715746244734,-150.0,0.00012998,2]
[327052650,1715746244743,-100.30889313,0.00012999,2]
[327052651,1715746244753,-601.72582563,0.00012999,2]
[327052652,1715746244762,-152.915259,0.00012999,2]
[327052653,1715746244771,-151.0,0.00012999,2]
[327052654,1715746244780,-151.0,0.00012999,2]
[327052655,1715746244790,-151.0,0.00012999,2]
[327052656,1715746244799,-155.248218,0.00012999,2]
[327052657,1715746244808,-151.089865,0.00012999,2]
[327052658,1715746244818,-151.0,0.00012999,2]
[327052659,1715746244827,-151.81177,0.00012999,2]
[327052660,1715746244836,-151.0,0.00012999,2]
[327052661,1715746244845,-264.74703667,0.00012999,2]
[327052662,1715746244855,-152.072062,0.00012999,2]
[327052663,1715746244864,-485.03252299,0.00012999,2]
[327052664,1715746244873,-500.0,0.00012999,2]
[327052665,1715746244882,-500.0,0.00012999,2]
[327052666,1715746244891,-500.0,0.00012999,2]
[327052667,1715746244900,-500.0,0.00012999,2]
[327052668,1715746244909,-600.0,0.00012999,2]
[327052669,1715746244918,-500.0,0.00012999,2]
[327052670,1715746244928,-151.0,0.00012999,2]
[327052671,1715746244938,-500.0,0.00012999,2]
[327052672,1715746244948,-500.0,0.00012999,2]
[327052673,1715746244957,-500.0,0.00012999,2]
[327052674,1715746244967,-643.9918576,0.00012999,2]
[327052675,1715746244976,-398.53083128,0.00012999,2]
[327052676,1715746244985,-151.0,0.00012999,2]
[327052677,1715746244997,-500.0,0.00012999,2]
[327052678,1715746245006,-218.98454609,0.00012999,2]
[327052679,1715746245015,-633.52968411,0.00012999,2]
[327052680,1715746245025,-151.0,0.00012999,2]
[327052681,1715746245034,-324.76541105,0.00012999,2]
[327052682,1715746245043,-151.0,0.00012999,2]
[327052683,1715746245053,-576.36205991,0.00012999,2]
[327052684,1715746245062,-151.0,0.00012999,2]
[327052685,1715746245073,-154.215023,0.00012999,2]
[327052686,1715746245082,-153.868949,0.00012999,2]
[327052687,1715746245091,-154.570738,0.00012999,2]
[327052688,1715746245102,-151.0,0.00012999,2]
[327052689,1715746245112,-500.0,0.00012999,2]
[327052690,1715746245121,-500.0,0.00012999,2]
[327052691,1715746245132,-500.0,0.00012999,2]
[327052692,1715746245141,-500.0,0.00012999,2]
[327052693,1715746245152,-500.0,0.00012999,2]
[327052694,1715746245162,-624.12310364,0.00012999,2]
[327052695,1715746245171,-500.0,0.00012999,2]
[327052696,1715746245180,-500.0,0.00012999,2]
[327052697,1715746245189,-500.0,0.00012999,2]
[327052698,1715746245198,-152.416791,0.00012999,2]
[327052699,1715746245207,-500.0,0.00012999,2]
[327052700,1715746245217,-612.80988478,0.00012999,2]
[327052701,1715746245226,-524.50595097,0.00012999,2]
[327052702,1715746245235,-390.28951769,0.00012999,2]
[327052703,1715746245244,-152.521323,0.00012999,2]
[327052704,1715746245254,-184.25596105,0.00012999,2]
[327052705,1715746245263,-437.19247427,0.00012999,2]
[327052706,1715746245272,-408.36581715,0.00012999,2]
[327052707,1715746245282,-265.99636853,0.00012999,2]
[327052708,1715746245291,-500.0,0.00012999,2]
[327052709,1715746245301,-297.54747262,0.00012999,2]
[327052710,1715746245310,-151.0,0.00012999,2]
[327052711,1715746245319,-500.0,0.00012999,2]
[327052712,1715746245328,-500.0,0.00012999,2]
[327052713,1715746245337,-500.0,0.00012999,2]
[327052714,1715746245346,-465.6972278,0.00012999,2]
[327052715,1715746245355,-500.0,0.00012999,2]
[327052716,1715746245365,-291.9782576,0.00012999,2]
[327052717,1715746245375,-151.0,0.00012999,2]
[327052718,1715746245384,-570.94936672,0.00012999,2]
[327052719,1715746245393,-151.0,0.00012999,2]
[327052720,1715746245402,-163.321425,0.00012999,2]
[327052721,1715746245411,-151.0,0.00012999,2]
[327052722,1715746245420,-530.72459235,0.00012999,2]
[327052723,1715746245429,-500.0,0.00012999,2]
[327052724,1715746245438,-500.0,0.00012999,2]
[327052725,1715746245448,-500.0,0.00012999,2]
[327052726,1715746245456,-500.0,0.00012999,2]
[327052727,1715746245465,-220.07966909,0.00012999,2]
[327052728,1715746245475,-500.0,0.00012999,2]
[327052729,1715746245487,-500.0,0.00012999,2]
[327052730,1715746245496,-186.24291474,0.00012999,2]
[327052731,1715746245506,-500.0,0.00012999,2]
[327052732,1715746245515,-312.30841966,0.00012999,2]
[327052733,1715746245526,-277.73591701,0.00012999,2]
[327052734,1715746245537,-151.0,0.00012999,2]
[327052735,1715746245547,-187.000238,0.00012999,2]
[327052736,1715746245559,-446.62405016,0.00012999,2]
[327052737,1715746245569,-158.413645,0.00012999,2]
[327052738,1715746245579,-187.000238,0.00012999,2]
[327052739,1715746245588,-286.773067,0.00012999,2]
[327052740,1715746245598,-500.0,0.00012999,2]
[327052741,1715746245607,-370.56135334,0.00012999,2]
[327052742,1715746245616,-500.0,0.00012999,2]
[327052743,1715746245626,-500.0,0.00012999,2]
[327052744,1715746245635,-482.6435446,0.00012999,2]
[327052745,1715746245644,-500.0,0.00012999,2]
[327052746,1715746245654,-500.8581961,0.00012999,2]
[327052747,1715746245663,-334.82702904,0.00012999,2]
[327052748,1715746245672,-500.0,0.00012999,2]
[327052749,1715746245681,-188.30538953,0.00012999,2]
[327052750,1715746245690,-550.6,0.00012999,2]
[327052751,1715746245699,-500.0,0.00012999,2]
[327052752,1715746245708,-500.0,0.00012999,2]
[327052753,1715746245717,-500.0,0.00012999,2]
[327052754,1715746245727,-500.0,0.00012999,2]
[327052755,1715746245736,-500.0,0.00012999,2]
[327052756,1715746245745,-500.0,0.00012999,2]
[327052757,1715746245754,-500.0,0.00012999,2]
[327052758,1715746245764,-500.0,0.00012999,2]
[327052759,1715746245773,-500.0,0.00012999,2]
[327052760,1715746245782,-500.0,0.00012999,2]
[327052761,1715746245791,-500.0,0.00012999,2]
[327052762,1715746245801,-500.0,0.00012999,2]
[327052763,1715746245810,-411.53707648,0.00012999,2]
[327052764,1715746245819,-500.0,0.00012999,2]
[327052765,1715746245828,-500.0,0.00012999,2]
[327052766,1715746245837,-500.0,0.00012999,2]
[327052767,1715746245846,-500.0,0.00012999,2]
[327052768,1715746245855,-500.0,0.00012999,2]
[327052769,1715746245864,-151.15571838,0.00012999,2]
[327052770,1715746245875,-215.44,0.00012999,2]
[327052771,1715746245884,-154.907884,0.00012999,2]
[327052772,1715746245893,-500.0,0.00012999,2]
[327052773,1715746245902,-445.27,0.00012999,2]
[327052774,1715746245912,-204.24787478,0.00012999,2]
[327052775,1715746245921,-151.0,0.00012999,2]
[327052776,1715746245930,-151.0,0.00012999,2]
[327052777,1715746245939,-595.86390918,0.00012999,2]
[327052778,1715746245949,-151.0,0.00012999,2]
[327052779,1715746245959,-500.0,0.00012999,2]
[327052780,1715746245968,-227.37668432,0.00012999,2]
[327052781,1715746245978,-45.75969012,0.00012999,2]
[327052782,1715746246016,-150.0,0.00012807,2]
[327052783,1715746246028,-150.0,0.00012915,2]
[327052784,1715746246040,-150.0,0.00012974,2]
[327052785,1715746246050,-454.24030988,0.00012999,2]
[327052786,1715746246059,-550.91651409,0.00012999,2]
[327052787,1715746246069,-500.0,0.00012999,2]
[327052788,1715746246078,-157.259408,0.00012999,2]
[327052789,1715746246088,-500.0,0.00012999,2]
[327052790,1715746246098,-500.0,0.00012999,2]
[327052791,1715746246108,-500.0,0.00012999,2]
[327052792,1715746246118,-500.0,0.00012999,2]
[327052793,1715746246128,-500.0,0.00012999,2]
[327052794,1715746246137,-500.0,0.00012999,2]
[327052795,1715746246146,-500.0,0.00012999,2]
[327052796,1715746246156,-500.0,0.00012999,2]
[327052797,1715746246165,-99.98376803,0.00012999,2]
[327052798,1715746246223,-150.0,0.0001273,2]
[327052799,1715746246232,-150.0,0.00012808,2]
[327052800,1715746246241,-134.85046186,0.00012864,2]
[327052801,1715746246423,-15.14953814,0.00012864,2]
[327052802,1715746246433,-150.0,0.00012886,2]
[327052803,1715746246442,-150.0,0.00012933,2]
[327052804,1715746246452,-95.0032079,0.00012939,2]
[327052805,1715746246611,-54.9967921,0.00012939,2]
[327052806,1715746246622,-150.0,0.00012944,2]
[327052807,1715746246633,-500.0,0.00012964,2]
[327052808,1715746246643,-150.0,0.00012968,2]
[327052809,1715746246652,-188.34702727,0.00012998,2]
[327052810,1715746246663,-400.01623197,0.00012999,2]
[327052811,1715746246674,-500.0,0.00012999,2]
[327052812,1715746246685,-500.0,0.00012999,2]
[327052813,1715746246695,-500.0,0.00012999,2]
[327052814,1715746246704,-167.72894213,0.00012999,2]
[327052815,1715746246713,-500.0,0.00012999,2]
[327052816,1715746246722,-500.0,0.00012999,2]
[327052817,1715746246731,-500.0,0.00012999,2]
[327052818,1715746246740,-500.0,0.00012999,2]
[327052819,1715746246749,-444.44424834,0.00012999,2]
[327052820,1715746246758,-500.0,0.00012999,2]
[327052821,1715746246767,-500.0,0.00012999,2]
[327052822,1715746246776,-500.0,0.00012999,2]
[327052823,1715746246785,-500.0,0.00012999,2]
[327052824,1715746246794,-500.0,0.00012999,2]
[327052825,1715746246803,-500.0,0.00012999,2]
[327052826,1715746246812,-500.0,0.00012999,2]
[327052827,1715746246822,-379.54,0.00012999,2]
[327052828,1715746246831,-500.0,0.00012999,2]
[327052829,1715746246840,-595.09381824,0.00012999,2]
[327052830,1715746246849,-484.01246126,0.00012999,2]
[327052831,1715746246859,-369.0908445,0.00012999,2]
[327052832,1715746246868,-171.807966,0.00012999,2]
[327052833,1715746246878,-500.0,0.00012999,2]
[327052834,1715746246887,-304.19,0.00012999,2]
[327052835,1715746246896,-151.0,0.00012999,2]
[327052836,1715746246905,-500.0,0.00012999,2]
[327052837,1715746246915,-177.082132,0.00012999,2]
[327052838,1715746246924,-280.73169011,0.00012999,2]
[327052839,1715746246933,-500.0,0.00012999,2]
[327052840,1715746246943,-500.0,0.00012999,2]
[327052841,1715746246953,-151.0,0.00012999,2]
[327052842,1715746246963,-635.78021177,0.00012999,2]
[327052843,1715746246972,-216.78936,0.00012999,2]
[327052844,1715746246981,-56.40117692,0.00012999,2]
[327052864,1715747431463,-155.0,9.96e-05,2]
[327052865,1715747431473,-155.0,9.961e-05,2]
[327052866,1715747431482,-406.59388063,9.975e-05,2]
[327052867,1715747431495,-1632.62611937,9.975e-05,2]
[327052868,1715747431504,-200.0,0.00011,2]
[327052869,1715747431513,-200.0,0.00011813,2]
[327052870,1715747431522,-250.0,0.00011813,2]
[327052871,1715747431532,-183.81,0.00011855,2]
[327052872,1715747431542,-190.64419413,0.00011867,2]
[327052873,1715747431600,-367.20580587,0.00011867,2]
[327052874,1715747431609,-169.35,0.00011893,2]
[327052875,1715747431618,-10.54419413,0.00011904,2]
[327052876,1715747431629,-153.91580587,0.00011904,2]
[327052877,1715747431638,-210.70919413,0.00012045,2]
[327052878,1715747431677,-619.94080587,0.00012045,2]
[327052879,1715747431686,-198.6,0.000121,2]
[327052880,1715747431695,-2039.22,0.00012239,2]
[327052881,1715747431704,-868.95,0.000123,2]
[327052882,1715747431713,-422.803592,0.00012455,2]
[327052883,1715747431722,-173.762639,0.00012455,2]
[327052884,1715747431731,-868.95,0.000125,2]
[327052885,1715747431740,-365.77296313,0.00012611,2]
[327052886,1715747431755,-57.03062887,0.00012611,2]
[327052887,1715747431766,-387.10011323,0.00012688,2]
[327052891,1715747437522,-401.1233,0.00012688,2]
[327052892,1715747437650,-400.0,0.00012688,2]
[327052893,1715747437780,-2426.77358677,0.00012688,2]
[327052894,1715747437790,-500.0,0.00012744,2]
[327052895,1715747437799,-12649.23290629,0.0001275,2]
[327052896,1715747437808,-500.0,0.00012753,2]
[327052897,1715747437817,-3619.97,0.00012758,2]
[327052898,1715747437827,-500.0,0.00012761,2]
[327052899,1715747437836,-422.803592,0.00012766,2]
[327052900,1715747437845,-173.762639,0.00012766,2]
[327052901,1715747437854,-500.0,0.0001277,2]
[327052902,1715747437863,-500.0,0.00012779,2]
[327052903,1715747437871,-500.0,0.00012788,2]
[327052904,1715747437880,-500.0,0.00012797,2]
[327052905,1715747437889,-500.0,0.00012805,2]
[327052906,1715747437898,-500.0,0.00012814,2]
[327052907,1715747437907,-3674.331,0.00012815,2]
[327052908,1715747437917,-500.0,0.00012823,2]
[327052909,1715747437931,-500.0,0.00012832,2]
[327052910,1715747437940,-500.0,0.00012841,2]
[327052911,1715747437949,-500.0,0.00012849,2]
[327052912,1715747437959,-500.0,0.00012858,2]
[327052913,1715747437968,-33.57281619,0.00012867,2]
[327052923,1715747439695,-864.52,0.00011905,2]
[327052924,1715747439707,-500.0,0.00012735,2]
[327052925,1715747439717,-466.42718381,0.00012867,2]
[327052926,1715747439728,-321.2911422,0.00012869,2]
[327052927,1715747439738,-500.0,0.00012876,2]
[327052928,1715747439748,-3642.316,0.00012877,2]
[327052929,1715747439758,-500.0,0.00012885,2]
[327052930,1715747439769,-23827.94567399,0.0001289,2]
[327052931,1715747441495,-288.3850001,0.0001289,2]
[327052932,1715747441629,-1077.90225816,0.0001289,2]
[327052945,1715747442750,-500.0,0.0001289,2]
[327052946,1715747442764,-499.21105787,0.0001289,2]
[327052947,1715747442947,-328.46936375,0.0001289,2]
[327052950,1715747447297,-7352.57849276,0.0001289,2]
[327052951,1715747447310,-127741.29827141,0.0001289,2]
[327052952,1715747447400,-869.94709096,0.0001289,2]
[327052953,1715747447412,-6404.71,0.0001289,2]
[327052954,1715747447424,-1510.0,0.0001289,2]
[327052955,1715747447594,-430.63342187,0.0001289,2]
[327052962,1715748508114,1835.29,9.718e-05,2]
[327052970,1715748631748,-3189.83507936,0.00010409,2]
[327052972,1715748631760,-310.55296648,0.00010409,2]
[327052973,1715748631843,-1723.49402903,0.00010409,2]
[327052974,1715748631858,-318.64482262,0.00010409,2]
[327052975,1715748631942,-712.8,0.00010409,2]
[327052976,1715748631954,-870.65450143,0.00010409,2]
[327052977,1715748631963,-1241.60223857,0.0001041,2]
[327052978,1715748631979,-1592.358,0.0001041,2]
[327052979,1715748631990,-173.0786381,0.0001041,2]
[327052980,1715748631999,-155.0,0.0001041,2]
[327052981,1715748632008,-323.47,0.00010411,2]
[327052982,1715748632018,-253.89,0.00010411,2]
[327052983,1715748632027,-2149.70762706,0.000114,2]
[327052984,1715748632036,-150.0,0.00011612,2]
[327052985,1715748632046,-691.62,0.00011613,2]
[327052986,1715748632055,-250.0,0.00011643,2]
[327052987,1715748632064,-164.46,0.00011712,2]
[327052988,1715748632074,-626.42414674,0.000118,2]
[327052989,1715748632083,-150.0,0.00011808,2]
[327052990,1715748632093,-190.86536093,0.00011838,2]
[327053081,1715748638053,-366.7,0.00011708,2]
[327053082,1715748638063,-308.38,0.00011856,2]
[327053083,1715748638073,-163.67,0.00011897,2]
[327053084,1715748638083,-357.88,0.00011904,2]
[327053085,1715748638094,-1835.29,0.00011982,2]
[327053086,1715748638104,-10.38000003,0.0001225,5]
[327053089,1715748640209,-489.61999997,0.0001225,5]
[327053090,1715748640219,-1000.0,0.000125,5]
[327053091,1715748640228,-500.0,0.0001255,2]
[327053092,1715748640238,-500.0,0.00012559,2]
[327053093,1715748640249,-500.0,0.00012568,2]
[327053094,1715748640258,-500.0,0.00012577,2]
[327053095,1715748640267,-2813.04832003,0.0001258,2]
[327053096,1715748640278,-600.65432599,0.0001258,2]
[327053097,1715748640335,-697.16713849,0.0001258,2]
[327053100,1715748643196,-2551.32,0.0001258,2]
[327053101,1715748643209,-342.46667533,0.0001258,2]
[327053102,1715748643222,-630.0,0.0001258,2]
[327053103,1715748643236,-104423.01763815,0.0001258,2]
[327053104,1715748643250,-303.00000001,0.0001258,2]
[327053105,1715748643272,-12897.43154487,0.0001258,2]
[327053106,1715748643281,-500.0,0.00012585,2]
[327053107,1715748643290,-500.0,0.00012594,2]
[327053108,1715748643301,-763.55604365,0.000126,2]
[327053109,1715748643310,-500.0,0.00012603,2]
[327053110,1715748643319,-500.0,0.00012612,2]
[327053111,1715748643329,-500.0,0.00012621,2]
[327053112,1715748643338,-500.0,0.00012629,2]
[327053113,1715748643347,-1117.85515335,0.00012632,2]
[327053114,1715748643356,-12626.51,0.00012632,2]
[327053116,1715748643366,-500.0,0.00012638,2]
[327053118,1715748643375,-500.0,0.00012647,2]
[327053120,1715748643384,-500.0,0.00012656,2]
[327053122,1715748643393,-500.0,0.00012665,2]
[327053123,1715748643402,-500.0,0.00012673,2]
[327053125,1715748643412,-500.0,0.00012682,2]
[327053127,1715748643421,-500.0,0.00012691,2]
[327053130,1715748643431,-500.0,0.000127,2]
[327053131,1715748643441,-500.0,0.00012709,2]
[327053133,1715748643453,-413.05,0.00012712,2]
[327053135,1715748643463,-500.0,0.00012717,2]
[327053137,1715748643472,-500.0,0.00012726,2]
[327053139,1715748643482,-12649.23290629,0.0001275,2]
[327053141,1715748643491,-525.7286,0.00012888,2]
[327053143,1715748643501,-2102.43222,0.0001289,2]
[327053145,1715748643511,-329168.91936913,0.0001289,2]
[327053147,1715748643520,-500000.0,0.0001289,2]
[327053149,1715748643531,-149924.66538481,0.0001289,2]
[327053151,1715748643541,-500.0,0.00012893,2]
[327053153,1715748643551,-3648.424,0.00012894,2]
[327053155,1715748643560,-500.0,0.00012895,2]
[327053157,1715748643569,-500.0,0.00012895,2]
[327053159,1715748643578,-692.944377,0.00012895,2]
[327053161,1715748643587,-500.0,0.00012895,2]
[327053163,1715748643597,-8218.9628,0.00012899,2]
[327053165,1715748643606,-2427.9441,0.00012899,2]
[327053167,1715748643616,-1402.3,0.000129,2]
[327053169,1715748643626,-593.0,0.000129,2]
[327053171,1715748643635,-500.0,0.00012902,2]
[327053173,1715748643644,-500.0,0.00012911,2]
[327053175,1715748643653,-500.0,0.0001292,2]
[327053177,1715748643662,-422.803592,0.00012922,2]
[327053179,1715748643671,-500.0,0.00012929,2]
[327053181,1715748643680,-500.0,0.00012937,2]
[327053183,1715748643690,-500.0,0.00012946,2]
[327053184,1715748643699,-500.0,0.00012955,2]
[327053186,1715748643708,-284.73,0.00012978,2]
[327053188,1715748643717,-516.1662114,0.00012988,2]
[327053191,1715748643727,-500.0,0.00012988,2]
[327053192,1715748643736,-500.0,0.00012988,2]
[327053195,1715748643746,-500.0,0.00012988,2]
[327053197,1715748643755,-500.0,0.00012988,2]
[327053198,1715748643764,-174.8753087,0.00012988,2]
[327053201,1715748643774,-627.48276094,0.00012988,2]
[327053203,1715748643784,-604.250357,0.00012988,2]
[327053204,1715748643793,-500.0,0.00012988,2]
[327053207,1715748643803,-500.0,0.00012988,2]
[327053208,1715748643812,-500.0,0.00012988,2]
[327053211,1715748643821,-500.0,0.00012988,2]
[327053212,1715748643830,-316.02,0.00012988,2]
[327053214,1715748643839,-500.0,0.00012988,2]
[327053216,1715748643849,-418.1955506,0.00012988,2]
[327053219,1715748643858,-500.0,0.00012988,2]
[327053221,1715748643867,-299.60787188,0.00012988,2]
[327053222,1715748643878,-500.0,0.00012988,2]
[327053224,1715748643887,-500.0,0.00012988,2]
[327053226,1715748643899,-500.0,0.00012988,2]
[327053228,1715748643908,-2155.3,0.00012988,2]
[327053231,1715748643919,-670.18,0.00012988,2]
[327053232,1715748643929,-500.0,0.00012988,2]
[327053234,1715748643938,-2913.16,0.00012988,2]
[327053236,1715748643947,-500.0,0.00012988,2]
[327053238,1715748643956,-500.0,0.00012988,2]
[327053240,1715748643965,-500.0,0.00012988,2]
[327053242,1715748643974,-500.0,0.00012988,2]
[327053244,1715748643984,-500.0,0.00012988,2]
[327053246,1715748643993,-500.0,0.00012988,2]
[327053248,1715748644002,-500.0,0.00012988,2]
[327053250,1715748644012,-500.0,0.00012988,2]
[327053252,1715748644021,-500.0,0.00012988,2]
[327053254,1715748644030,-500.0,0.00012988,2]
[327053256,1715748644039,-500.0,0.00012988,2]
[327053258,1715748644048,-500.0,0.00012988,2]
[327053260,1715748644058,-574.461,0.00012989,2]
[327053262,1715748644067,-633.058,0.00012989,2]
[327053264,1715748644076,-251.743,0.00012989,2]
[327053266,1715748644085,-4390.496,0.00012989,2]
[327053268,1715748644094,-1047.0,0.00012989,2]
[327053270,1715748644103,-1017.506,0.00012989,2]
[327053272,1715748644113,-150.0,0.00012989,2]
[327053274,1715748644123,-299.85,0.00012989,2]
[327053276,1715748644132,-284.73,0.00012989,2]
[327053278,1715748644142,-284.73,0.00012989,2]
[327053280,1715748644151,-500.0,0.00012989,2]
[327053282,1715748644160,-646.4,0.00012989,2]
[327053284,1715748644169,-184.39873801,0.00012989,2]
[327053286,1715748644179,-500.0,0.00012989,2]
[327053288,1715748644188,-500.0,0.00012989,2]
[327053290,1715748644198,-500.0,0.00012989,2]
[327053292,1715748644207,-500.0,0.00012989,2]
[327053294,1715748644216,-557.15539036,0.00012989,2]
[327053296,1715748644225,-284.73,0.0001299,2]
[327053298,1715748644235,-255.0,0.0001299,2]
[327053300,1715748644243,-284.73,0.0001299,2]
[327053302,1715748644253,-284.73,0.0001299,2]
[327053304,1715748644262,-284.73,0.0001299,2]
[327053305,1715748644272,-9181.7221192,0.00012996,2]
[327053307,1715748644281,-4126.0955578,0.00012996,2]
[327053308,1715748644290,-71659.3131805,0.00012996,2]
[327053309,1715748644299,-3686.534,0.00012997,2]
[327053310,1715748644308,-1000.0,0.00012997,2]
[327053311,1715748644317,-183.24671027,0.00012997,2]
[327053312,1715748644326,-3486.72336118,0.00012998,2]
[327053313,1715748644335,-601.72582564,0.00012998,2]
[327053314,1715748644344,-505.92977698,0.00012998,2]
[327053315,1715748644353,-500.0,0.00012998,2]
[327053316,1715748644362,-212.39237609,0.00012998,2]
[327053317,1715748644371,-500.0,0.00012998,2]
[327053318,1715748644380,-207.59566893,0.00012998,2]
[327053319,1715748644389,-500.0,0.00012998,2]
[327053320,1715748644398,-500.0,0.00012998,2]
[327053321,1715748644407,-448.56382066,0.00012998,2]
[327053322,1715748644416,-500.0,0.00012998,2]
[327053323,1715748644424,-500.0,0.00012998,2]
[327053324,1715748644433,-500.0,0.00012998,2]
[327053325,1715748644442,-500.0,0.00012998,2]
[327053327,1715748644454,-504.35328042,0.00012998,2]
[327053329,1715748644464,-309.3558498,0.00012998,2]
[327053331,1715748644473,-500.0,0.00012998,2]
[327053333,1715748644482,-260.78056648,0.00012998,2]
[327053335,1715748644491,-500.0,0.00012998,2]
[327053337,1715748644500,-511.40887975,0.00012998,2]
[327053339,1715748644509,-495.77229998,0.00012998,2]
[327053341,1715748644519,-503.27325173,0.00012998,2]
[327053343,1715748644528,-515.5426167,0.00012998,2]
[327053345,1715748644538,-517.59755635,0.00012998,2]